fUSD/lending_fUSD_20250204
["ID","MTS","AMOUNT","RATE_DAILY","PERIOD"]
[351581938,1738644426247,-1000.0,8.219e-05,2]
[351581939,1738644426269,-960.65823438,8.219e-05,2]
[351581940,1738644426296,-837.49814728,8.22e-05,2]
[351581942,1738644438089,-2436.26964892,8.22e-05,2]
[351581969,1738644632272,-397.11,8.219e-05,2]
[351581970,1738644632282,-605.39136,8.22e-05,2]
[351582004,1738644638147,-453.64775706,8.22e-05,2]
[351582005,1738644638418,-667.19308674,8.22e-05,2]
[351582006,1738644638428,-1900.0,8.22e-05,2]
[351582007,1738644638437,-150.0,8.767e-05,2]
[351582008,1738644638446,-150.0,8.79e-05,2]
[351582009,1738644638456,-2023.0,8.791e-05,2]
[351582010,1738644638468,-1272.0,8.791e-05,2]
[351582012,1738644638477,-150.0,8.791e-05,2]
[351582013,1738644638486,-638.0,8.791e-05,2]
[351582014,1738644638495,-568.0,8.791e-05,2]
[351582015,1738644638504,-1826.0,8.791e-05,2]
[351582016,1738644638513,-870.59061042,8.791e-05,2]
[351582022,1738644640556,-36.40938958,8.791e-05,2]
[351582023,1738644640566,-1264.0,8.791e-05,2]
[351582024,1738644640575,-783.0,8.791e-05,2]
[351582025,1738644640584,-746.61989587,8.791e-05,2]
[351582055,1738644643378,-2206.38010413,8.791e-05,2]
[351582056,1738644643387,-539.0,8.791e-05,2]
[351582057,1738644643397,-1324.0,8.791e-05,2]
[351582058,1738644643406,-150.0,8.791e-05,2]
[351582059,1738644643415,-1007.0,8.791e-05,2]
[351582060,1738644643425,-3911.0,8.791e-05,2]
[351582061,1738644643434,-1108.0,8.791e-05,2]
[351582062,1738644643443,-950.8260871,8.793e-05,2]
[351582063,1738644643452,-488.2790136,8.793e-05,2]
[351582064,1738644643463,-666.0,8.799e-05,2]
[351582065,1738644643472,-666.0,8.799e-05,2]
[351582066,1738644643482,-666.0,8.799e-05,2]
[351582067,1738644643491,-1023.0,8.8e-05,2]
[351582068,1738644643500,-84724.21824149,8.8e-05,2]
[351582069,1738644643526,-11827.73838418,8.8e-05,2]
[351582070,1738644643542,-443.4506406,8.8e-05,2]
[351582071,1738644643598,-541.54300055,8.8e-05,2]
[351582078,1738644646497,-432.00902886,8.8e-05,2]
[351582079,1738644646614,-5609.90000002,8.8e-05,2]
[351582080,1738644646734,-2142.856,8.8e-05,2]
[351582083,1738645091490,303.22,7.934e-05,2]
[351582084,1738645116747,1000.0,7.956e-05,2]
[351582085,1738645116791,150.32872794,7.985e-05,2]
[351582089,1738645611143,-150.94126786,8.028e-05,2]
[351582090,1738645641121,649.0983403,8.799e-05,120]
[351582091,1738645647111,-849.05873214,8.028e-05,2]
[351582092,1738645647136,-150.0,8.028e-05,2]
[351582093,1738645647159,-150.0,8.029e-05,2]
[351582094,1738645647182,-150.0,8.03e-05,2]
[351582095,1738645647203,-150.0,8.05e-05,2]
[351582096,1738645647226,-3685.75931658,8.05e-05,2]
[351582097,1738645647249,-283.63885328,8.057e-05,2]
[351582098,1738645647272,-150.0,8.059e-05,2]
[351582099,1738645647294,-150.0,8.075e-05,2]
[351582100,1738645647316,-150.0,8.094e-05,2]
[351582101,1738645647340,-1000.0,8.098e-05,2]
[351582102,1738645647361,-724.25549435,8.108e-05,2]
[351582103,1738645693869,421.04,7.644e-05,2]
[351582104,1738645741098,500.0,8.799e-05,30]
[351582105,1738645741738,258.1365767,8.936e-05,30]
[351582106,1738645831674,1710.61,7.643e-05,2]
[351582117,1738645832548,-275.74450565,8.108e-05,2]
[351582118,1738645832558,-171.25,8.11e-05,2]
[351582119,1738645832568,-103.63402171,8.163e-05,2]
[351582120,1738645832579,-69.25597829,8.163e-05,2]
[351582121,1738645832589,-223.082002,8.178e-05,2]
[351582122,1738645832598,-163.95,8.219e-05,2]
[351582123,1738645832608,-1849.72,8.219e-05,2]
[351582124,1738645832619,-241.48,8.219e-05,2]
[351582125,1738645832628,-1000.0,8.219e-05,2]
[351582126,1738645832638,-334.17,8.219e-05,2]
[351582127,1738645832648,-304.91,8.219e-05,2]
[351582128,1738645832658,-639.64385747,8.22e-05,2]
[351582129,1738645832670,-2993.132592,8.22e-05,2]
[351582130,1738645835794,-541.470002,8.22e-05,2]
[351582131,1738645835879,-525.75354853,8.22e-05,2]
[351582132,1738645835891,-1800.0,8.22e-05,2]
[351582133,1738645835900,-150.0,8.462e-05,2]
[351582134,1738645835910,-150.28395711,8.528e-05,2]
[351582135,1738645835920,-150.0,8.532e-05,2]
[351582136,1738645835930,-2248.02,8.532e-05,2]
[351582138,1738645835939,-150.99,8.532e-05,2]
[351582140,1738645835949,-1000.0,8.534e-05,2]
[351582141,1738645835962,-1000.0,8.534e-05,2]
[351582142,1738645835972,-150.99,8.534e-05,2]
[351582143,1738645835982,-150.0,8.536e-05,2]
[351582144,1738645835991,-189.70108572,8.538e-05,2]
[351582145,1738645836000,-150.0,8.538e-05,2]
[351582146,1738645836010,-150.0,8.539e-05,2]
[351582147,1738645836019,-150.0,8.544e-05,2]
[351582148,1738645836029,-150.0,8.544e-05,2]
[351582149,1738645836039,-150.0,8.545e-05,2]
[351582150,1738645836048,-150.0,8.545e-05,2]
[351582151,1738645836059,-150.0,8.547e-05,2]
[351582153,1738645836069,-150.0,8.548e-05,2]
[351582154,1738645836080,-150.0,8.549e-05,2]
[351582155,1738645836090,-150.0,8.551e-05,2]
[351582156,1738645836100,-150.0,8.551e-05,2]
[351582157,1738645836109,-150.0,8.553e-05,2]
[351582158,1738645836119,-232.65332889,8.556e-05,2]
[351582160,1738645836129,-150.0,8.557e-05,2]
[351582163,1738645836138,-150.0,8.558e-05,2]
[351582165,1738645836151,-150.0,8.563e-05,2]
[351582167,1738645836161,-150.0,8.563e-05,2]
[351582169,1738645836171,-150.0,8.564e-05,2]
[351582172,1738645836180,-150.0,8.568e-05,2]
[351582173,1738645836190,-150.0,8.569e-05,2]
[351582174,1738645836203,-150.0,8.571e-05,2]
[351582175,1738645836212,-150.0,8.571e-05,2]
[351582177,1738645836222,-150.0,8.575e-05,2]
[351582180,1738645836233,-404.31282185,8.575e-05,2]
[351582182,1738645836243,-150.0,8.576e-05,2]
[351582184,1738645836253,-150.0,8.577e-05,2]
[351582186,1738645836263,-1000.0,8.577e-05,2]
[351582188,1738645836273,-150.0,8.578e-05,2]
[351582190,1738645836283,-150.0,8.58e-05,2]
[351582192,1738645836293,-150.0,8.58e-05,2]
[351582194,1738645836302,-232.65332889,8.582e-05,2]
[351582196,1738645836312,-150.0,8.586e-05,2]
[351582198,1738645836323,-150.0,8.587e-05,2]
[351582200,1738645836333,-150.0,8.59e-05,2]
[351582202,1738645836343,-150.0,8.598e-05,2]
[351582204,1738645836353,-150.0,8.604e-05,2]
[351582205,1738645836363,-150.0,8.609e-05,2]
[351582206,1738645836372,-150.0,8.61e-05,2]
[351582207,1738645836381,-150.0,8.61e-05,2]
[351582208,1738645836391,-150.0,8.615e-05,2]
[351582209,1738645836400,-150.0,8.616e-05,2]
[351582210,1738645836410,-150.0,8.617e-05,2]
[351582211,1738645836419,-150.0,8.618e-05,2]
[351582212,1738645836429,-150.0,8.622e-05,2]
[351582213,1738645836439,-150.0,8.622e-05,2]
[351582214,1738645836452,-150.0,8.623e-05,2]
[351582215,1738645836461,-150.0,8.624e-05,2]
[351582216,1738645836471,-150.0,8.625e-05,2]
[351582217,1738645836481,-150.0,8.632e-05,2]
[351582218,1738645836490,-150.0,8.634e-05,2]
[351582219,1738645836500,-150.0,8.637e-05,2]
[351582220,1738645836509,-150.0,8.64e-05,2]
[351582221,1738645836518,-150.0,8.642e-05,2]
[351582222,1738645836528,-150.0,8.644e-05,2]
[351582223,1738645836538,-150.0,8.644e-05,2]
[351582224,1738645836547,-150.0,8.645e-05,2]
[351582225,1738645836557,-150.0,8.646e-05,2]
[351582226,1738645836567,-150.0,8.647e-05,2]
[351582227,1738645836576,-1000.0,8.65e-05,2]
[351582228,1738645836585,-150.0,8.654e-05,2]
[351582229,1738645836594,-150.0,8.654e-05,2]
[351582230,1738645836604,-150.0,8.655e-05,2]
[351582231,1738645836614,-1000.0,8.659e-05,2]
[351582232,1738645836623,-150.0,8.66e-05,2]
[351582233,1738645836633,-150.0,8.664e-05,2]
[351582234,1738645836642,-150.0,8.665e-05,2]
[351582235,1738645836651,-1000.0,8.665e-05,2]
[351582236,1738645836661,-150.0,8.666e-05,2]
[351582237,1738645836670,-150.0,8.667e-05,2]
[351582238,1738645836680,-150.0,8.672e-05,2]
[351582239,1738645836690,-150.0,8.675e-05,2]
[351582240,1738645836701,-150.0,8.679e-05,2]
[351582241,1738645836710,-150.0,8.68e-05,2]
[351582242,1738645836719,-150.0,8.683e-05,2]
[351582243,1738645836729,-232.65332889,8.685e-05,2]
[351582244,1738645836738,-232.65332889,8.686e-05,2]
[351582245,1738645836747,-150.0,8.689e-05,2]
[351582246,1738645836758,-150.0,8.689e-05,2]
[351582247,1738645836767,-150.0,8.693e-05,2]
[351582248,1738645836777,-150.0,8.693e-05,2]
[351582249,1738645836786,-150.0,8.694e-05,2]
[351582250,1738645836796,-652.7152,8.7e-05,2]
[351582251,1738645836805,-150.0,8.7e-05,2]
[351582252,1738645836815,-5000.0,8.7e-05,2]
[351582253,1738645836826,-1565.0633,8.7e-05,2]
[351582254,1738645836837,-600.0,8.7e-05,3]
[351582255,1738645836848,-1000.0,8.7e-05,2]
[351582256,1738645836858,-1000.0,8.701e-05,2]
[351582257,1738645836869,-150.0,8.708e-05,2]
[351582258,1738645836879,-150.0,8.708e-05,2]
[351582259,1738645836888,-150.0,8.711e-05,2]
[351582260,1738645836897,-150.0,8.713e-05,2]
[351582261,1738645836907,-232.65332889,8.721e-05,2]
[351582262,1738645836916,-150.0,8.721e-05,2]
[351582263,1738645836925,-3911.0,8.722e-05,2]
[351582264,1738645836934,-1007.0,8.722e-05,2]
[351582265,1738645836943,-150.0,8.722e-05,2]
[351582266,1738645836957,-1108.0,8.722e-05,2]
[351582267,1738645836970,-150.0,8.722e-05,2]
[351582268,1738645836979,-150.0,8.724e-05,2]
[351582269,1738645836988,-150.0,8.724e-05,2]
[351582270,1738645836997,-150.0,8.725e-05,2]
[351582271,1738645837006,-150.0,8.725e-05,2]
[351582272,1738645837017,-150.0,8.726e-05,2]
[351582273,1738645837027,-150.0,8.727e-05,2]
[351582274,1738645837036,-150.0,8.734e-05,2]
[351582275,1738645837047,-152.0,8.736e-05,3]
[351582276,1738645837056,-150.0,8.741e-05,2]
[351582277,1738645837069,-1000.0,8.741e-05,2]
[351582278,1738645837078,-150.0,8.742e-05,2]
[351582279,1738645837088,-1000.0,8.749e-05,2]
[351582280,1738645837097,-150.0,8.751e-05,2]
[351582281,1738645837107,-2669.25393786,8.754e-05,2]
[351582282,1738645837116,-1000.0,8.754e-05,2]
[351582283,1738645837125,-237.83703,8.756e-05,2]
[351582284,1738645837135,-150.0,8.756e-05,2]
[351582285,1738645837144,-1000.0,8.756e-05,2]
[351582286,1738645837155,-243.81247446,8.756e-05,2]
[351582287,1738645837168,-492.06162554,8.756e-05,2]
[351582288,1738645837177,-150.0,8.759e-05,2]
[351582289,1738645837186,-150.0,8.765e-05,2]
[351582290,1738645837195,-150.0,8.769e-05,2]
[351582291,1738645837207,-52.93837446,8.77e-05,2]
[351582292,1738645837418,-97.06162554,8.77e-05,2]
[351582293,1738645837428,-150.0,8.775e-05,2]
[351582294,1738645837438,-150.0,8.777e-05,2]
[351582295,1738645837452,-10.93837446,8.778e-05,2]
[351582304,1738645838842,-139.06162554,8.778e-05,2]
[351582305,1738645838852,-150.0,8.781e-05,2]
[351582306,1738645838861,-200.0,8.782e-05,2]
[351582307,1738645838871,-38.05608793,8.782e-05,2]
[351582308,1738645838883,-111.94391207,8.782e-05,2]
[351582309,1738645838892,-150.0,8.784e-05,2]
[351582310,1738645838902,-150.0,8.786e-05,2]
[351582311,1738645838912,-150.0,8.787e-05,2]
[351582312,1738645838922,-150.0,8.787e-05,2]
[351582313,1738645838932,-1822.7007737,8.789e-05,2]
[351582314,1738645838942,-492.7704599,8.789e-05,2]
[351582315,1738645838957,-263.6439078,8.789e-05,2]
[351582316,1738645838967,-423.335194,8.789e-05,2]
[351582317,1738645838976,-260.88706124,8.789e-05,2]
[351582318,1738645838986,-1000.0,8.79e-05,2]
[351582319,1738645838995,-1000.0,8.79e-05,2]
[351582320,1738645839006,-1000.0,8.79e-05,2]
[351582321,1738645839015,-1002.0,8.79e-05,2]
[351582322,1738645839024,-1000.0,8.79e-05,2]
[351582323,1738645839034,-836.0,8.79e-05,2]
[351582324,1738645839045,-151.786,8.791e-05,2]
[351582325,1738645839057,-1272.0,8.791e-05,2]
[351582326,1738645839068,-2023.0,8.791e-05,2]
[351582327,1738645839080,-568.0,8.791e-05,2]
[351582328,1738645839090,-638.0,8.791e-05,2]
[351582329,1738645839099,-150.0,8.791e-05,2]
[351582330,1738645839110,-1826.0,8.791e-05,2]
[351582331,1738645839119,-1264.0,8.791e-05,2]
[351582332,1738645839129,-783.0,8.791e-05,2]
[351582333,1738645839138,-2953.0,8.791e-05,2]
[351582334,1738645839150,-907.0,8.791e-05,2]
[351582335,1738645839160,-1324.0,8.791e-05,2]
[351582336,1738645839170,-539.0,8.791e-05,2]
[351582337,1738645839180,-150.0,8.792e-05,2]
[351582339,1738645839190,-2669.25393786,8.792e-05,2]
[351582341,1738645839202,-150.0,8.793e-05,2]
[351582342,1738645839212,-150.0,8.793e-05,2]
[351582345,1738645839222,-150.0,8.793e-05,2]
[351582347,1738645839232,-2669.25393786,8.794e-05,2]
[351582349,1738645839242,-150.0,8.794e-05,2]
[351582351,1738645839253,-150.0,8.795e-05,2]
[351582353,1738645839262,-150.0,8.795e-05,2]
[351582355,1738645839272,-2669.25393786,8.795e-05,2]
[351582357,1738645839281,-527.39697031,8.798e-05,2]
[351582359,1738645839291,-500.17683862,8.798e-05,2]
[351582360,1738645839300,-500.0,8.798e-05,2]
[351582363,1738645839309,-1241.83,8.798e-05,2]
[351582365,1738645839319,-1952.01,8.798e-05,2]
[351582366,1738645839328,-500.0,8.798e-05,2]
[351582369,1738645839338,-500.0,8.798e-05,2]
[351582370,1738645839348,-668.21219216,8.798e-05,2]
[351582372,1738645839357,-2005.49,8.799e-05,2]
[351582374,1738645839366,-666.0,8.799e-05,2]
[351582376,1738645839376,-500.0,8.799e-05,2]
[351582378,1738645839385,-500.0,8.799e-05,2]
[351582380,1738645839395,-2291.09,8.799e-05,2]
[351582383,1738645839404,-500.0,8.799e-05,2]
[351582385,1738645839413,-603.02,8.799e-05,2]
[351582387,1738645839423,-500.0,8.799e-05,2]
[351582388,1738645839432,-500.0,8.799e-05,2]
[351582390,1738645839441,-500.0,8.799e-05,2]
[351582392,1738645839454,-589.87,8.799e-05,2]
[351582394,1738645839464,-500.0,8.799e-05,2]
[351582396,1738645839473,-501.63711651,8.799e-05,2]
[351582398,1738645839482,-500.0,8.799e-05,2]
[351582401,1738645839492,-500.0,8.799e-05,2]
[351582403,1738645839501,-454.19777001,8.799e-05,2]
[351582407,1738645839530,-45.80222999,8.799e-05,2]
[351582409,1738645839540,-500.0,8.799e-05,2]
[351582411,1738645839549,-712.52,8.799e-05,2]
[351582413,1738645839558,-1025.18,8.799e-05,2]
[351582415,1738645839568,-500.0,8.799e-05,2]
[351582417,1738645839577,-500.0,8.799e-05,2]
[351582419,1738645839589,-1459.21428974,8.799e-05,2]
[351582422,1738645839617,-25.53571026,8.799e-05,2]
[351582425,1738645839627,-500.0,8.799e-05,2]
[351582427,1738645839637,-500.0,8.799e-05,2]
[351582429,1738645839648,-500.0,8.799e-05,2]
[351582431,1738645839657,-500.0,8.799e-05,2]
[351582433,1738645839667,-503.47500847,8.799e-05,2]
[351582435,1738645839676,-500.0,8.799e-05,2]
[351582436,1738645839686,-500.0,8.799e-05,2]
[351582438,1738645839695,-500.2079928,8.799e-05,2]
[351582440,1738645839709,-500.0,8.799e-05,2]
[351582442,1738645839719,-502.10317483,8.799e-05,2]
[351582444,1738645839730,-500.0,8.799e-05,2]
[351582447,1738645839741,-500.0,8.799e-05,2]
[351582449,1738645839752,-1678.33,8.799e-05,2]
[351582451,1738645839762,-931.9,8.799e-05,2]
[351582453,1738645839772,-500.0,8.799e-05,2]
[351582455,1738645839782,-646.6,8.799e-05,2]
[351582456,1738645839792,-666.91,8.799e-05,2]
[351582459,1738645839803,-500.0,8.799e-05,2]
[351582460,1738645839812,-500.0,8.799e-05,2]
[351582462,1738645839822,-500.0,8.799e-05,2]
[351582464,1738645839832,-387.8969557,8.799e-05,2]
[351582486,1738645839841,-500.0,8.799e-05,2]
[351582490,1738645840056,-500.0,8.799e-05,2]
[351582492,1738645840069,-499.01192976,8.799e-05,2]
[351582494,1738645840079,-500.0,8.799e-05,2]
[351582496,1738645840089,-500.0,8.799e-05,2]
[351582498,1738645840098,-500.0,8.799e-05,2]
[351582500,1738645840109,-1719.5885318,8.799e-05,2]
[351582502,1738645840121,-214.2714682,8.799e-05,2]
[351582504,1738645840131,-501.40487927,8.799e-05,2]
[351582506,1738645840141,-141.34974497,8.799e-05,2]
[351582508,1738645840153,-370.02025503,8.799e-05,2]
[351582510,1738645840163,-500.0,8.799e-05,2]
[351582512,1738645840172,-886.54777273,8.799e-05,2]
[351582514,1738645840183,-1886.28222727,8.799e-05,2]
[351582516,1738645840192,-500.0,8.799e-05,2]
[351582518,1738645840207,-1409.95,8.799e-05,2]
[351582520,1738645840217,-1600.42,8.799e-05,2]
[351582522,1738645840227,-500.23815521,8.799e-05,2]
[351582526,1738645840237,-500.0,8.799e-05,2]
[351582527,1738645840246,-500.0,8.799e-05,2]
[351582529,1738645840255,-638.81,8.799e-05,2]
[351582531,1738645840265,-500.0,8.799e-05,2]
[351582534,1738645840275,-501.16,8.799e-05,2]
[351582536,1738645840285,-500.0,8.799e-05,2]
[351582537,1738645840294,-1340.2,8.799e-05,2]
[351582541,1738645840303,-500.0,8.799e-05,2]
[351582545,1738645840313,-500.0,8.799e-05,2]
[351582549,1738645840322,-585.34,8.799e-05,2]
[351582551,1738645840332,-1138.0,8.799e-05,2]
[351582553,1738645840341,-500.0,8.799e-05,2]
[351582555,1738645840350,-500.0,8.799e-05,2]
[351582557,1738645840359,-500.0,8.799e-05,2]
[351582559,1738645840368,-501.25004958,8.799e-05,2]
[351582561,1738645840377,-500.0,8.799e-05,2]
[351582563,1738645840387,-500.0,8.799e-05,2]
[351582565,1738645840396,-500.0,8.799e-05,2]
[351582567,1738645840405,-1694.04,8.799e-05,2]
[351582569,1738645840414,-500.0,8.799e-05,2]
[351582571,1738645840424,-1405.66,8.799e-05,2]
[351582573,1738645840433,-18.63876949,8.799e-05,2]
[351582576,1738645840447,-483.52544369,8.799e-05,2]
[351582578,1738645840459,-219.1338313,8.799e-05,2]
[351582580,1738645840471,-356.2961687,8.799e-05,2]
[351582582,1738645840481,-500.0,8.799e-05,2]
[351582584,1738645840490,-500.0,8.799e-05,2]
[351582586,1738645840499,-970.21,8.799e-05,2]
[351582588,1738645840509,-500.0,8.799e-05,2]
[351582590,1738645840519,-1875.89,8.799e-05,2]
[351582592,1738645840528,-1334.15,8.799e-05,2]
[351582594,1738645840538,-500.17598196,8.799e-05,2]
[351582596,1738645840547,-737.05,8.799e-05,2]
[351582598,1738645840556,-500.0,8.799e-05,2]
[351582600,1738645840566,-986.0,8.799e-05,2]
[351582602,1738645840574,-500.0,8.799e-05,2]
[351582604,1738645840583,-500.0,8.799e-05,2]
[351582606,1738645840591,-500.0,8.799e-05,2]
[351582608,1738645840601,-133.39896189,8.799e-05,2]
[351582610,1738645840612,-1374.61103811,8.799e-05,2]
[351582612,1738645840621,-500.0,8.799e-05,2]
[351582614,1738645840630,-500.0,8.799e-05,2]
[351582616,1738645840639,-500.0,8.799e-05,2]
[351582618,1738645840647,-542.29763926,8.799e-05,2]
[351582679,1738645841179,-269.26236074,8.799e-05,2]
[351582681,1738645841190,-500.0,8.799e-05,2]
[351582683,1738645841205,-500.0,8.799e-05,2]
[351582685,1738645841216,-134.93752486,8.799e-05,2]
[351582699,1738645841343,-891.94378579,8.799e-05,2]
[351582731,1738645841665,-299.41121363,8.799e-05,2]
[351582732,1738645841696,-211.89747572,8.799e-05,2]
[351582748,1738645841921,-284.70863428,8.799e-05,2]
[351582750,1738645841934,-215.29136572,8.799e-05,2]
[351582752,1738645841944,-675.13,8.799e-05,2]
[351582754,1738645841958,-106.05411428,8.799e-05,2]
[351582762,1738645842026,-453.04509128,8.799e-05,2]
[351582764,1738645842037,-459.11793739,8.799e-05,2]
[351583007,1738645844377,-178.13,8.542e-05,2]
[351583009,1738645844387,-40.88206261,8.799e-05,2]
[351583011,1738645844397,-500.0,8.799e-05,2]
[351583013,1738645844407,-500.0,8.799e-05,2]
[351583015,1738645844416,-500.73440511,8.799e-05,2]
[351583017,1738645844426,-500.0,8.799e-05,2]
[351583019,1738645844435,-500.0,8.799e-05,2]
[351583021,1738645844445,-649.46,8.799e-05,2]
[351583023,1738645844458,-500.0,8.799e-05,2]
[351583025,1738645844467,-500.0,8.799e-05,2]
[351583027,1738645844477,-1018.74,8.799e-05,2]
[351583029,1738645844486,-500.0,8.799e-05,2]
[351583031,1738645844496,-500.0,8.799e-05,2]
[351583033,1738645844506,-500.0,8.799e-05,2]
[351583035,1738645844515,-500.0,8.799e-05,2]
[351583037,1738645844525,-500.0,8.799e-05,2]
[351583039,1738645844534,-500.0,8.799e-05,2]
[351583041,1738645844544,-500.0,8.799e-05,2]
[351583043,1738645844553,-1748.11,8.799e-05,2]
[351583045,1738645844562,-500.0,8.799e-05,2]
[351583047,1738645844572,-1134.89,8.799e-05,2]
[351583049,1738645844581,-1779.76,8.799e-05,2]
[351583051,1738645844591,-3399.7,8.799e-05,2]
[351583053,1738645844600,-991.6,8.799e-05,2]
[351583055,1738645844611,-501.37899479,8.799e-05,2]
[351583056,1738645844621,-500.0,8.799e-05,2]
[351583057,1738645844631,-500.0,8.799e-05,2]
[351583058,1738645844641,-511.67584734,8.799e-05,2]
[351583059,1738645844651,-1186.58,8.799e-05,2]
[351583060,1738645844660,-500.0,8.799e-05,2]
[351583061,1738645844670,-1691.48,8.799e-05,2]
[351583062,1738645844679,-500.0,8.799e-05,2]
[351583063,1738645844696,-500.0,8.799e-05,2]
[351583064,1738645844710,-500.0,8.799e-05,2]
[351583066,1738645844719,-502.70362479,8.799e-05,2]
[351583068,1738645844729,-1121.56,8.799e-05,2]
[351583070,1738645844738,-500.0,8.799e-05,2]
[351583072,1738645844748,-578.79,8.799e-05,2]
[351583074,1738645844757,-500.0,8.799e-05,2]
[351583076,1738645844767,-500.0,8.799e-05,2]
[351583077,1738645844776,-500.0,8.799e-05,2]
[351583080,1738645844785,-2367.19,8.799e-05,2]
[351583083,1738645844795,-1401.84,8.799e-05,2]
[351583084,1738645844805,-500.0,8.799e-05,2]
[351583086,1738645844814,-584.47151044,8.799e-05,2]
[351583089,1738645844823,-500.0,8.799e-05,2]
[351583090,1738645844832,-500.0,8.799e-05,2]
[351583092,1738645844842,-500.0,8.799e-05,2]
[351583094,1738645844851,-500.0,8.799e-05,2]
[351583098,1738645844862,-1167.55,8.799e-05,2]
[351583099,1738645844872,-511.56244659,8.799e-05,2]
[351583101,1738645844881,-500.0,8.799e-05,2]
[351583103,1738645844891,-500.0,8.799e-05,2]
[351583105,1738645844901,-500.0,8.799e-05,2]
[351583107,1738645844911,-500.0,8.799e-05,2]
[351583109,1738645844922,-541.03,8.799e-05,2]
[351583111,1738645844932,-500.0,8.799e-05,2]
[351583113,1738645844942,-500.0,8.799e-05,2]
[351583115,1738645844954,-2184.26,8.799e-05,2]
[351583117,1738645844964,-500.0,8.799e-05,2]
[351583119,1738645844974,-500.0,8.799e-05,2]
[351583121,1738645844984,-2444.03,8.799e-05,2]
[351583123,1738645844994,-500.0,8.799e-05,2]
[351583143,1738645845192,-500.0,8.799e-05,2]
[351583145,1738645845204,-500.0,8.799e-05,2]
[351583147,1738645845214,-830.09,8.799e-05,2]
[351583148,1738645845223,-1270.05,8.799e-05,2]
[351583150,1738645845233,-500.0,8.799e-05,2]
[351583152,1738645845244,-500.0,8.799e-05,2]
[351583154,1738645845253,-1095.7,8.799e-05,2]
[351583156,1738645845263,-3179.37,8.799e-05,2]
[351583158,1738645845274,-500.0,8.799e-05,2]
[351583160,1738645845283,-500.0,8.799e-05,2]
[351583162,1738645845293,-2312.44,8.799e-05,2]
[351583164,1738645845302,-607.3125944,8.799e-05,2]
[351583166,1738645845311,-500.0,8.799e-05,2]
[351583168,1738645845320,-532.89788146,8.799e-05,2]
[351583170,1738645845331,-500.0,8.799e-05,2]
[351583172,1738645845339,-500.0,8.799e-05,2]
[351583174,1738645845349,-500.0,8.799e-05,2]
[351583176,1738645845358,-500.0,8.799e-05,2]
[351583178,1738645845368,-724.57,8.799e-05,2]
[351583180,1738645845378,-500.0,8.799e-05,2]
[351583182,1738645845387,-500.0,8.799e-05,2]
[351583184,1738645845397,-505.7576162,8.799e-05,2]
[351583186,1738645845406,-522.44,8.799e-05,2]
[351583188,1738645845415,-162.13795804,8.799e-05,2]
[351583190,1738645845425,-500.35674986,8.799e-05,2]
[351583192,1738645845434,-688.74,8.799e-05,2]
[351583194,1738645845444,-500.0,8.799e-05,2]
[351583195,1738645845458,-500.0,8.799e-05,2]
[351583197,1738645845469,-1279.31,8.799e-05,2]
[351583199,1738645845480,-500.0,8.799e-05,2]
[351583201,1738645845490,-1840.09,8.799e-05,2]
[351583203,1738645845500,-533.33,8.799e-05,2]
[351583205,1738645845510,-500.0,8.799e-05,2]
[351583207,1738645845520,-500.0,8.799e-05,2]
[351583209,1738645845530,-2099.03,8.799e-05,2]
[351583211,1738645845540,-500.0,8.799e-05,2]
[351583213,1738645845550,-500.0,8.799e-05,2]
[351583215,1738645845560,-612.74,8.799e-05,2]
[351583217,1738645845570,-500.0,8.799e-05,2]
[351583218,1738645845581,-500.0,8.799e-05,2]
[351583220,1738645845591,-500.0,8.799e-05,2]
[351583222,1738645845601,-741.02,8.799e-05,2]
[351583225,1738645845611,-838.42,8.799e-05,2]
[351583226,1738645845620,-500.0,8.799e-05,2]
[351583228,1738645845630,-502.2776491,8.799e-05,2]
[351583230,1738645845640,-1767.48,8.799e-05,2]
[351583232,1738645845649,-1010.91,8.799e-05,2]
[351583234,1738645845659,-500.0,8.799e-05,2]
[351583236,1738645845668,-500.0,8.799e-05,2]
[351583238,1738645845678,-1475.65,8.799e-05,2]